fUST/lending_fUST_20260628
["ID","MTS","AMOUNT","RATE_DAILY","PERIOD"]
[426547355,1782577850000,-534.48,0.00038356,2]
[426547357,1782577850000,-507.02224803,0.00038356,2]
[426547353,1782577850000,-500.0,0.00038356,2]
[426547358,1782577850000,-511.4109833,0.00038356,2]
[426547361,1782577850000,-500.0,0.00038356,2]
[426547363,1782577850000,-569.44317332,0.00038356,2]
[426547395,1782577850000,-500.0,0.00038356,2]
[426547362,1782577850000,-507.26168675,0.00038356,2]
[426547396,1782577850000,-1200.91,0.00038356,2]
[426547460,1782577850000,-500.0,0.00038356,2]
[426547443,1782577850000,-3659.01,0.00038356,2]
[426547433,1782577850000,-500.0,0.00038356,2]
[426547444,1782577850000,-641.99908841,0.00038356,2]
[426547431,1782577850000,-500.0,0.00038356,2]
[426547434,1782577850000,-500.0,0.00038356,2]
[426547442,1782577850000,-500.0,0.00038356,2]
[426547435,1782577850000,-500.0,0.00038356,2]
[426547436,1782577850000,-500.0,0.00038356,2]
[426547438,1782577850000,-527.82365223,0.00038356,2]
[426547437,1782577850000,-500.0,0.00038356,2]
[426547441,1782577850000,-518.27652418,0.00038356,2]
[426547439,1782577850000,-1000.0,0.00038356,2]
[426547440,1782577850000,-500.0,0.00038356,2]
[426547445,1782577850000,-515.34352495,0.00038356,2]
[426547446,1782577850000,-507.95500132,0.00038356,2]
[426547449,1782577850000,-500.0,0.00038356,2]
[426547451,1782577850000,-6851.47,0.00038356,2]
[426547450,1782577850000,-500.0,0.00038356,2]
[426547448,1782577850000,-500.0,0.00038356,2]
[426547447,1782577850000,-1822.46,0.00038356,2]
[426547452,1782577850000,-506.27997403,0.00038356,2]
[426547456,1782577850000,-500.0,0.00038356,2]
[426547454,1782577850000,-500.0,0.00038356,2]
[426547453,1782577850000,-509.65945538,0.00038356,2]
[426547455,1782577850000,-500.0,0.00038356,2]
[426547457,1782577850000,-500.0,0.00038356,2]
[426547459,1782577850000,-504.26950074,0.00038356,2]
[426547458,1782577850000,-201.00147512,0.00038356,2]
[426547432,1782577850000,-523.45997831,0.00038356,2]
[426547424,1782577850000,-5686.0,0.00038356,2]
[426547399,1782577850000,-500.0,0.00038356,2]
[426547423,1782577850000,-501.67541992,0.00038356,2]
[426547428,1782577850000,-500.0,0.00038356,2]
[426547398,1782577850000,-1529.38,0.00038356,2]
[426547402,1782577850000,-500.0,0.00038356,2]
[426547403,1782577850000,-509.81645895,0.00038356,2]
[426547400,1782577850000,-500.0,0.00038356,2]
[426547404,1782577850000,-507.09211763,0.00038356,2]
[426547397,1782577850000,-511.01993805,0.00038356,2]
[426547407,1782577850000,-3079.23,0.00038356,2]
[426547409,1782577850000,-500.0,0.00038356,2]
[426547418,1782577850000,-500.0,0.00038356,2]
[426547408,1782577850000,-3909.9,0.00038356,2]
[426547415,1782577850000,-500.0,0.00038356,2]
[426547417,1782577850000,-501.78853598,0.00038356,2]
[426547406,1782577850000,-500.0,0.00038356,2]
[426547405,1782577850000,-500.0,0.00038356,2]
[426547412,1782577850000,-500.0,0.00038356,2]
[426547427,1782577850000,-890.64,0.00038356,2]
[426547429,1782577850000,-533.49300525,0.00038356,2]
[426547430,1782577850000,-500.0,0.00038356,2]
[426547426,1782577850000,-500.0,0.00038356,2]
[426547410,1782577850000,-818.78,0.00038356,2]
[426547420,1782577850000,-500.0,0.00038356,2]
[426547425,1782577850000,-510.1908893,0.00038356,2]
[426547419,1782577850000,-500.0,0.00038356,2]
[426547421,1782577850000,-500.0,0.00038356,2]
[426547416,1782577850000,-525.94877642,0.00038356,2]
[426547414,1782577850000,-500.0,0.00038356,2]
[426547413,1782577850000,-563.31464685,0.00038356,2]
[426547411,1782577850000,-1663.12,0.00038356,2]
[426547422,1782577850000,-500.0,0.00038356,2]
[426547503,1782577851000,-2858.51,0.00038356,2]
[426547504,1782577851000,-500.0,0.00038356,2]
[426547502,1782577851000,-500.0,0.00038356,2]
[426547496,1782577851000,-516.86399029,0.00038356,2]
[426547497,1782577851000,-512.27668393,0.00038356,2]
[426547499,1782577851000,-1139.99,0.00038356,2]
[426547489,1782577851000,-500.0,0.00038356,2]
[426547492,1782577851000,-1251.17,0.00038356,2]
[426547495,1782577851000,-517.13816526,0.00038356,2]
[426547491,1782577851000,-512.3506733,0.00038356,2]
[426547494,1782577851000,-500.0,0.00038356,2]
[426547500,1782577851000,-513.72161605,0.00038356,2]
[426547507,1782577851000,-845.69,0.00038356,2]
[426547510,1782577851000,-556.44020408,0.00038356,2]
[426547514,1782577851000,-547.62775228,0.00038356,2]
[426547513,1782577851000,-536.93839047,0.00038356,2]
[426547509,1782577851000,-500.0,0.00038356,2]
[426547508,1782577851000,-500.0,0.00038356,2]
[426547511,1782577851000,-500.0,0.00038356,2]
[426547512,1782577851000,-638.89598116,0.00038356,2]
[426547526,1782577851000,-500.0,0.00038356,2]
[426547528,1782577851000,-1837.22,0.00038356,2]
[426547516,1782577851000,-500.0,0.00038356,2]
[426547527,1782577851000,-500.0,0.00038356,2]
[426547517,1782577851000,-555.20956902,0.00038356,2]
[426547524,1782577851000,-500.0,0.00038356,2]
[426547493,1782577851000,-463.5276708,0.00038356,2]
[426547505,1782577851000,-500.0,0.00038356,2]
[426547501,1782577851000,-770.71,0.00038356,2]
[426547474,1782577851000,-500.0,0.00038356,2]
[426547490,1782577851000,-760.3,0.00038356,2]
[426547462,1782577851000,-500.0,0.00038356,2]
[426547461,1782577851000,-1501.65,0.00038356,2]
[426547463,1782577851000,-500.0,0.00038356,2]
[426547465,1782577851000,-516.10798426,0.00038356,2]
[426547476,1782577851000,-519.36845966,0.00038356,2]
[426547467,1782577851000,-500.0,0.00038356,2]
[426547464,1782577851000,-500.0,0.00038356,2]
[426547475,1782577851000,-500.0,0.00038356,2]
[426547466,1782577851000,-1414.053087,0.00038356,2]
[426547473,1782577851000,-500.0,0.00038356,2]
[426547469,1782577851000,-513.13754052,0.00038356,2]
[426547468,1782577851000,-1364.44,0.00038356,2]
[426547471,1782577851000,-512.79928742,0.00038356,2]
[426547498,1782577851000,-506.32963655,0.00038356,2]
[426547472,1782577851000,-469.28350661,0.00038356,2]
[426547515,1782577851000,-504.963779,0.00038356,2]
[426547478,1782577851000,-500.0,0.00038356,2]
[426547484,1782577851000,-572.86535198,0.00038356,2]
[426547477,1782577851000,-500.0,0.00038356,2]
[426547488,1782577851000,-2784.65,0.00038356,2]
[426547487,1782577851000,-500.0,0.00038356,2]
[426547485,1782577851000,-500.0,0.00038356,2]
[426547486,1782577851000,-500.0,0.00038356,2]
[426547480,1782577851000,-1640.54,0.00038356,2]
[426547483,1782577851000,-500.0,0.00038356,2]
[426547479,1782577851000,-500.0,0.00038356,2]
[426547482,1782577851000,-519.93642821,0.00038356,2]
[426547481,1782577851000,-500.0,0.00038356,2]
[426547470,1782577851000,-1182.49,0.00038356,2]
[426547521,1782577851000,-500.0,0.00038356,2]
[426547506,1782577851000,-509.30109244,0.00038356,2]
[426547585,1782577851000,-579.49,0.00038356,2]
[426547564,1782577851000,-2412.91,0.00038356,2]
[426547560,1782577851000,-500.0,0.00038356,2]
[426547563,1782577851000,-500.0,0.00038356,2]
[426547558,1782577851000,-500.0,0.00038356,2]
[426547557,1782577851000,-500.0,0.00038356,2]
[426547561,1782577851000,-500.0,0.00038356,2]
[426547562,1782577851000,-505.31857113,0.00038356,2]
[426547567,1782577851000,-503.72688083,0.00038356,2]
[426547569,1782577851000,-500.0,0.00038356,2]
[426547565,1782577851000,-500.0,0.00038356,2]
[426547566,1782577851000,-500.0,0.00038356,2]
[426547568,1782577851000,-513.41964139,0.00038356,2]
[426547571,1782577851000,-1545.6,0.00038356,2]
[426547559,1782577851000,-509.18789175,0.00038356,2]
[426547581,1782577851000,-500.0,0.00038356,2]
[426547573,1782577851000,-500.0,0.00038356,2]
[426547572,1782577851000,-500.0,0.00038356,2]
[426547582,1782577851000,-500.0,0.00038356,2]
[426547570,1782577851000,-500.0,0.00038356,2]
[426547574,1782577851000,-500.0,0.00038356,2]
[426547580,1782577851000,-500.0,0.00038356,2]
[426547576,1782577851000,-500.0,0.00038356,2]
[426547579,1782577851000,-500.0,0.00038356,2]
[426547575,1782577851000,-512.30537542,0.00038356,2]
[426547577,1782577851000,-500.0,0.00038356,2]
[426547578,1782577851000,-500.0,0.00038356,2]
[426547584,1782577851000,-604.38,0.00038356,2]
[426547525,1782577851000,-500.0,0.00038356,2]
[426547583,1782577851000,-500.0,0.00038356,2]
[426547556,1782577851000,-862.59,0.00038356,2]
[426547518,1782577851000,-500.0,0.00038356,2]
[426547551,1782577851000,-500.0,0.00038356,2]
[426547550,1782577851000,-507.57559343,0.00038356,2]
[426547519,1782577851000,-511.59805562,0.00038356,2]
[426547522,1782577851000,-2096.82,0.00038356,2]
[426547523,1782577851000,-500.93046201,0.00038356,2]
[426547520,1782577851000,-500.0,0.00038356,2]
[426547529,1782577851000,-500.0,0.00038356,2]
[426547533,1782577851000,-1031.82,0.00038356,2]
[426547530,1782577851000,-500.0,0.00038356,2]
[426547532,1782577851000,-500.0,0.00038356,2]
[426547535,1782577851000,-500.0,0.00038356,2]
[426547536,1782577851000,-548.07526892,0.00038356,2]
[426547539,1782577851000,-1438.25,0.00038356,2]
[426547534,1782577851000,-500.0,0.00038356,2]
[426547538,1782577851000,-500.0,0.00038356,2]
[426547531,1782577851000,-513.24147125,0.00038356,2]
[426547542,1782577851000,-1917.08,0.00038356,2]
[426547537,1782577851000,-500.0,0.00038356,2]
[426547552,1782577851000,-500.0,0.00038356,2]
[426547553,1782577851000,-1122.83,0.00038356,2]
[426547545,1782577851000,-533.18551917,0.00038356,2]
[426547555,1782577851000,-500.0,0.00038356,2]
[426547549,1782577851000,-500.0,0.00038356,2]
[426547548,1782577851000,-500.0,0.00038356,2]
[426547546,1782577851000,-3746.66,0.00038356,2]
[426547543,1782577851000,-500.0,0.00038356,2]
[426547554,1782577851000,-500.0,0.00038356,2]
[426547544,1782577851000,-500.0,0.00038356,2]
[426547541,1782577851000,-500.0,0.00038356,2]
[426547540,1782577851000,-500.0,0.00038356,2]
[426547547,1782577851000,-1032.57,0.00038356,2]
[426547600,1782577852000,-1151.16375545,0.00038674,2]
[426547597,1782577852000,-1256.15890898,0.00038674,2]
[426547598,1782577852000,-1107.88511284,0.00038674,2]
[426547609,1782577852000,-842.10182352,0.0003879,2]
[426547599,1782577852000,-1054.27606776,0.00038674,2]
[426547587,1782577852000,-3493.31,0.00038356,2]
[426547596,1782577852000,-5036.89713611,0.00038673,2]
[426547588,1782577852000,-151.57217048,0.00038356,2]
[426547593,1782577852000,-5104.0,0.000385,60]
[426547595,1782577852000,-2187.1579595,0.00038673,2]
[426547590,1782577852000,-151.0,0.00038356,7]
[426547591,1782577852000,-14124.57133854,0.00038367,2]
[426547594,1782577852000,-3568.74452942,0.00038673,2]
[426547589,1782577852000,-500.0,0.00038356,2]
[426547586,1782577852000,-2826.63,0.00038356,2]
[426547602,1782577852000,-1402.99574015,0.00038674,2]
[426547592,1782577852000,-151.0,0.00038438,7]
[426547604,1782577852000,-1056.54409194,0.00038674,2]
[426547603,1782577852000,-1192.29883286,0.00038674,2]
[426547605,1782577852000,-1079.27295126,0.00038674,2]
[426547606,1782577852000,-1096.05523434,0.00038675,2]
[426547623,1782577852000,-340.71017819,0.0003168,7]
[426547622,1782577852000,-236.40043965,0.0003168,7]
[426547620,1782577852000,-585.84515222,0.000299,2]
[426547619,1782577852000,-229.15,0.0002597,2]
[426547618,1782577852000,-437.64861601,0.000388,120]
[426547617,1782577852000,-24708.77584613,0.000388,120]
[426547616,1782577852000,-20578.03081456,0.000388,120]
[426547621,1782577852000,-690.545932,0.0003168,7]
[426547614,1782577852000,-11706.91847235,0.000388,120]
[426547613,1782577852000,-2000.0,0.0003879,2]
[426547611,1782577852000,-2000.0,0.0003879,2]
[426547612,1782577852000,-2000.0,0.0003879,2]
[426547610,1782577852000,-2000.0,0.0003879,2]
[426547608,1782577852000,-151.0,0.00038685,7]
[426547601,1782577852000,-1059.73803714,0.00038674,2]
[426547615,1782577852000,-4663.58074933,0.000388,120]
[426547607,1782577852000,-151.0,0.00038685,7]
[426547630,1782577853000,-690.545932,0.0003168,7]
[426547634,1782577853000,-200.0,0.00035709,2]
[426547628,1782577853000,-690.545932,0.0003168,7]
[426547626,1782577853000,-690.545932,0.0003168,7]
[426547624,1782577853000,-113.43531416,0.0003168,7]
[426547627,1782577853000,-690.545932,0.0003168,7]
[426547625,1782577853000,-690.545932,0.0003168,7]
[426547635,1782577853000,-5128.33881508,0.000388,120]
[426547629,1782577853000,-690.545932,0.0003168,7]
[426547633,1782577853000,-690.545932,0.0003168,7]
[426547643,1782577853000,-24176.23101358,0.000388,120]
[426547632,1782577853000,-690.545932,0.0003168,7]
[426547637,1782577853000,-690.545932,0.0003168,7]
[426547636,1782577853000,-690.545932,0.0003168,7]
[426547639,1782577853000,-690.545932,0.0003168,7]
[426547640,1782577853000,-690.545932,0.0003168,7]
[426547638,1782577853000,-690.545932,0.0003168,7]
[426547641,1782577853000,-690.545932,0.0003168,7]
[426547642,1782577853000,-690.545937,0.0003168,7]
[426547644,1782577853000,-625.20358466,0.000388,120]
[426547631,1782577853000,-690.545932,0.0003168,7]
[426547653,1782577984000,4097.89964833,0.0001,2]
[426547654,1782578019000,5565.54188993,0.000104,2]
[426547655,1782578045000,810.13668818,0.0001,2]
[426547699,1782578919000,553.77455667,0.000104,2]
[426547738,1782579032000,-2789.11227083,0.0001579,2]
[426547846,1782579038000,-162.39290801,0.00034443,2]
[426547845,1782579038000,-204.58298185,0.00034443,2]
[426547843,1782579038000,-158.75531454,0.00034443,2]
[426547841,1782579038000,-167.23813685,0.00034443,2]
[426547842,1782579038000,-175.9181789,0.00034443,2]
[426547836,1782579038000,-160.0,0.00030794,2]
[426547840,1782579038000,-287.45141358,0.00034443,2]
[426547837,1782579038000,-160.0,0.00030794,2]
[426547838,1782579038000,-300.0,0.00033721,31]
[426547834,1782579038000,-300.0,0.00030793,2]
[426547831,1782579038000,-191.44332425,0.0002137,2]
[426547835,1782579038000,-160.0,0.00030794,2]
[426547833,1782579038000,-219.695,0.0002703,2]
[426547832,1782579038000,-1420.0,0.0002703,2]
[426547830,1782579038000,-191.44332425,0.00016438,2]
[426547829,1782579038000,-2210.88772917,0.0001579,2]
[426547849,1782579038000,-167.43706073,0.00034481,2]
[426547844,1782579038000,-164.82941767,0.00034443,2]
[426547839,1782579038000,-371.5529316,0.00034443,2]
[426547848,1782579038000,-183.22430646,0.00034449,2]
[426547847,1782579038000,-167.06702957,0.00034449,2]
[426547865,1782579038000,-1114.6587948,0.00036114,2]
[426547866,1782579038000,-862.35424073,0.00036114,2]
[426547864,1782579038000,-429.42904462,0.00036014,2]
[426547863,1782579038000,-375.12886701,0.00035485,2]
[426547860,1782579038000,-366.44861292,0.00035452,2]
[426547857,1782579038000,-409.1659637,0.00035446,2]
[426547861,1782579038000,-156.90524676,0.00035485,2]
[426547856,1782579038000,-329.65883534,0.00035446,2]
[426547862,1782579038000,-334.87412145,0.00035485,2]
[426547859,1782579038000,-334.13405914,0.00035452,2]
[426547855,1782579038000,-317.51062908,0.00035446,2]
[426547854,1782579038000,-351.8363578,0.00035446,2]
[426547853,1782579038000,-334.47627369,0.00035446,2]
[426547858,1782579038000,-324.78581602,0.00035446,2]
[426547852,1782579038000,-574.90282715,0.00035446,2]
[426547850,1782579038000,-187.5644335,0.00034481,2]
[426547851,1782579038000,-743.1058632,0.00035446,2]
[426547882,1782579039000,-562.69330051,0.00036155,2]
[426547885,1782579039000,-151.5,0.00036286,2]
[426547880,1782579039000,-502.31118218,0.00036154,2]
[426547884,1782579039000,-151.5,0.00036286,2]
[426547887,1782579039000,-500.0,0.00036286,2]
[426547883,1782579039000,-429.42904457,0.00036263,2]
[426547888,1782579039000,-500.0,0.00036286,2]
[426547881,1782579039000,-236.19323501,0.00036154,2]
[426547886,1782579039000,-197.0,0.00036286,2]
[426547878,1782579039000,-500.0,0.00036154,2]
[426547868,1782579039000,-501.71441054,0.00036114,2]
[426547875,1782579039000,-206.04740655,0.00036114,2]
[426547876,1782579039000,-501.20108871,0.00036121,2]
[426547874,1782579039000,-487.17872403,0.00036114,2]
[426547870,1782579039000,-476.26594362,0.00036114,2]
[426547872,1782579039000,-613.74894556,0.00036114,2]
[426547867,1782579039000,-217.32407736,0.00036114,2]
[426547869,1782579039000,-527.75453671,0.00036114,2]
[426547871,1782579039000,-494.48825301,0.00036114,2]
[426547873,1782579039000,-268.70737724,0.00036114,2]
[426547889,1782579039000,-283.89373037,0.00036286,2]
[426547877,1782579039000,-549.67291939,0.00036121,2]
[426547890,1782579039000,-7353.22083871,0.00036391,58]
[426547879,1782579039000,-313.81049352,0.00036154,2]
[426547892,1782579039000,-789.35048486,0.0003646,120]
[426547912,1782579039000,-153.90349284,0.00036566,2]
[426547911,1782579039000,-668.26811827,0.00036566,2]
[426547905,1782579039000,-216.78443222,0.0003656,2]
[426547909,1782579039000,-412.09481309,0.0003656,2]
[426547907,1782579039000,-818.33192741,0.0003656,2]
[426547908,1782579039000,-649.57163203,0.0003656,2]
[426547910,1782579039000,-230.74847039,0.0003656,2]
[426547906,1782579039000,-659.31767068,0.0003656,2]
[426547904,1782579039000,-170.76143368,0.0003656,2]
[426547903,1782579039000,-222.43033515,0.0003656,2]
[426547900,1782579039000,-205.17625023,0.0003656,2]
[426547902,1782579039000,-635.02125816,0.0003656,2]
[426547901,1782579039000,-703.67271561,0.0003656,2]
[426547899,1782579039000,-668.95254739,0.0003656,2]
[426547898,1782579039000,-434.64815471,0.0003656,2]
[426547893,1782579039000,-160.607,0.0003646,45]
[426547914,1782579039000,-219.87361821,0.000366,2]
[426547897,1782579039000,-1149.80565431,0.0003656,2]
[426547896,1782579039000,-1486.21172639,0.0003656,2]
[426547894,1782579039000,-429.42904457,0.00036512,2]
[426547895,1782579039000,-180.01326471,0.0003656,2]
[426547913,1782579039000,-732.89722585,0.00036566,2]
[426547891,1782579039000,-500.0,0.00036428,2]
[426547935,1782579040000,-160.61037529,0.000366,2]
[426547934,1782579040000,-449.8746247,0.000366,2]
[426548041,1782579047000,-429.42904457,0.00038007,2]
[426548021,1782579047000,-429.42904457,0.00037509,2]
[426548024,1782579047000,-151.0,0.00037671,2]
[426548023,1782579047000,-2038.16866163,0.00037626,2]
[426548025,1782579047000,-2229.31758959,0.00037674,2]
[426548027,1782579047000,-1003.42882108,0.00037674,2]
[426548026,1782579047000,-1724.70848146,0.00037674,2]
[426548043,1782579047000,-271.74096362,0.00038256,10]
[426548028,1782579047000,-1055.50907341,0.00037674,2]
[426548030,1782579047000,-988.97650602,0.00037674,2]
[426548022,1782579047000,-151.0,0.00037534,2]
[426548034,1782579047000,-151.0,0.00037699,2]
[426548032,1782579047000,-1002.40217741,0.00037681,2]
[426548036,1782579047000,-1004.62236436,0.00037716,2]
[426548033,1782579047000,-1099.34583877,0.00037681,2]
[426548037,1782579047000,-1125.38660102,0.00037717,2]
[426548035,1782579047000,-300.0,0.0003771,46]
[426548038,1782579047000,-429.42904457,0.00037758,2]
[426548029,1782579047000,-952.53188723,0.00037674,2]
[426548040,1782579047000,-151.0,0.00038,2]
[426548039,1782579047000,-151.0,0.00037863,2]
[426548042,1782579047000,-151.0,0.00038192,2]
[426548031,1782579047000,-974.35744805,0.00037674,2]
[426548017,1782579047000,-937.82216752,0.00037047,2]
[426548010,1782579047000,-824.14708835,0.00037005,2]
[426548019,1782579047000,-429.42904457,0.0003726,2]
[426548045,1782579047000,-38000.0,0.00038347,15]
[426547996,1782579047000,-169.94420826,0.00036601,2]
[426547997,1782579047000,-537.41475448,0.00036601,2]
[426547995,1782579047000,-311.77609473,0.000366,2]
[426548000,1782579047000,-429.42904457,0.00036761,2]
[426547998,1782579047000,-750.25773401,0.00036601,2]
[426547999,1782579047000,-500.0,0.00036702,2]
[426548005,1782579047000,-1857.76465799,0.00037005,2]
[426548004,1782579047000,-165.74375993,0.00037004,15]
[426548001,1782579047000,-324.96,0.0003686,5]
[426548003,1782579047000,-566.2388101,0.00037004,15]
[426548002,1782579047000,-674.11529211,0.00036905,120]
[426548007,1782579047000,-836.19068423,0.00037005,2]
[426548011,1782579047000,-1022.91490926,0.00037005,2]
[426548006,1782579047000,-1437.25706789,0.00037005,2]
[426548008,1782579047000,-879.59089451,0.00037005,2]
[426548009,1782579047000,-793.7765727,0.00037005,2]
[426548013,1782579047000,-429.42904457,0.0003701,2]
[426548012,1782579047000,-811.96454004,0.00037005,2]
[426548015,1782579047000,-916.12153231,0.00037012,2]
[426548014,1782579047000,-835.33514784,0.00037012,2]
[426548016,1782579047000,-837.18530363,0.00037047,2]
[426548018,1782579047000,-210.0,0.00037151,43]
[426548020,1782579047000,-179.240031,0.00037411,2]
[426548044,1782579047000,-429.42904457,0.00038256,2]
[426548063,1782579047000,-521.90220333,0.00038356,2]
[426548047,1782579047000,-523.29272758,0.00038356,2]
[426548075,1782579047000,-500.0,0.00038356,2]
[426548076,1782579047000,-404.0773704,0.00038356,2]
[426548078,1782579047000,-503.26881991,0.00038356,2]
[426548081,1782579047000,-512.36035661,0.00038356,2]
[426548080,1782579047000,-540.15390505,0.00038356,2]
[426548079,1782579047000,-516.13695494,0.00038356,2]
[426548083,1782579047000,-500.0,0.00038356,2]
[426548084,1782579047000,-681.86,0.00038356,2]
[426548082,1782579047000,-500.69421519,0.00038356,2]
[426548085,1782579047000,-558.43550858,0.00038356,2]
[426548077,1782579047000,-542.00235814,0.00038356,2]
[426548087,1782579047000,-500.0,0.00038356,2]
[426548089,1782579047000,-547.07708106,0.00038356,2]
[426548090,1782579047000,-500.0,0.00038356,2]
[426548092,1782579047000,-501.77599666,0.00038356,2]
[426548093,1782579047000,-500.0,0.00038356,2]
[426548091,1782579047000,-514.56027983,0.00038356,2]
[426548095,1782579047000,-534.67018982,0.00038356,2]
[426548094,1782579047000,-515.35727078,0.00038356,2]
[426548097,1782579047000,-500.0,0.00038356,2]
[426548096,1782579047000,-509.39940247,0.00038356,2]
[426548046,1782579047000,-514.15380252,0.00038356,2]
[426548088,1782579047000,-533.69661894,0.00038356,2]
[426548070,1782579047000,-715.74346787,0.00038356,2]
[426548086,1782579047000,-500.0,0.00038356,2]
[426548072,1782579047000,-539.18111163,0.00038356,2]
[426548048,1782579047000,-518.37648921,0.00038356,2]
[426548071,1782579047000,-281.44249325,0.00038356,2]
[426548049,1782579047000,-502.34700012,0.00038356,2]
[426548051,1782579047000,-38000.0,0.00038356,15]
[426548050,1782579047000,-651.4935,0.00038356,2]
[426548052,1782579047000,-1872.82978261,0.00038356,2]
[426548054,1782579047000,-512.23562502,0.00038356,2]
[426548053,1782579047000,-513.70939792,0.00038356,2]
[426548057,1782579047000,-568.50862753,0.00038356,2]
[426548058,1782579047000,-537.25116409,0.00038356,2]
[426548061,1782579047000,-554.75864053,0.00038356,2]
[426548059,1782579047000,-568.42035911,0.00038356,2]
[426548055,1782579047000,-500.0,0.00038356,2]
[426548069,1782579047000,-503.92773229,0.00038356,2]
[426548060,1782579047000,-500.0,0.00038356,2]
[426548062,1782579047000,-500.0,0.00038356,2]
[426548064,1782579047000,-1000.0,0.00038356,2]
[426548065,1782579047000,-500.0,0.00038356,2]
[426548067,1782579047000,-506.65714785,0.00038356,2]
[426548066,1782579047000,-520.76164551,0.00038356,2]
[426548074,1782579047000,-500.0,0.00038356,2]
[426548073,1782579047000,-510.50554349,0.00038356,2]
[426548056,1782579047000,-510.38764579,0.00038356,2]
[426548068,1782579047000,-500.0,0.00038356,2]
[426548135,1782579048000,-784.66,0.00038356,2]
[426548133,1782579048000,-547.27,0.00038356,2]
[426548131,1782579048000,-500.0,0.00038356,2]
[426548130,1782579048000,-513.62271993,0.00038356,2]
[426548126,1782579048000,-500.0,0.00038356,2]
[426548128,1782579048000,-523.49157966,0.00038356,2]
[426548127,1782579048000,-500.0,0.00038356,2]
[426548136,1782579048000,-513.24747007,0.00038356,2]
[426548134,1782579048000,-509.05228467,0.00038356,2]
[426548129,1782579048000,-508.66106907,0.00038356,2]
[426548132,1782579048000,-500.0,0.00038356,2]
[426548149,1782579048000,-513.31610791,0.00038356,2]
[426548138,1782579048000,-500.0,0.00038356,2]
[426548139,1782579048000,-500.0,0.00038356,2]
[426548141,1782579048000,-500.0,0.00038356,2]
[426548142,1782579048000,-507.3815548,0.00038356,2]
[426548140,1782579048000,-521.21850572,0.00038356,2]
[426548145,1782579048000,-500.0,0.00038356,2]
[426548146,1782579048000,-500.0,0.00038356,2]
[426548144,1782579048000,-564.53924246,0.00038356,2]
[426548148,1782579048000,-519.62703116,0.00038356,2]
[426548147,1782579048000,-679.83,0.00038356,2]
[426548125,1782579048000,-500.0,0.00038356,2]
[426548137,1782579048000,-625.25,0.00038356,2]
[426548122,1782579048000,-515.93988759,0.00038356,2]
[426548099,1782579048000,-513.11823243,0.00038356,2]
[426548123,1782579048000,-500.0,0.00038356,2]
[426548151,1782579048000,-1383.91,0.00038356,2]
[426548098,1782579048000,-500.0,0.00038356,2]
[426548100,1782579048000,-538.92808457,0.00038356,2]
[426548101,1782579048000,-543.36616267,0.00038356,2]
[426548102,1782579048000,-500.0,0.00038356,2]
[426548105,1782579048000,-510.47496903,0.00038356,2]
[426548104,1782579048000,-165.00242543,0.00038356,2]
[426548111,1782579048000,-552.43947509,0.00038356,2]
[426548109,1782579048000,-1619.87,0.00038356,2]
[426548103,1782579048000,-516.47252812,0.00038356,2]
[426548107,1782579048000,-500.0,0.00038356,2]
[426548121,1782579048000,-524.10257338,0.00038356,2]
[426548110,1782579048000,-516.81342443,0.00038356,2]
[426548108,1782579048000,-506.25799828,0.00038356,2]
[426548113,1782579048000,-544.77464791,0.00038356,2]
[426548112,1782579048000,-473.83714285,0.00038356,2]
[426548114,1782579048000,-512.21,0.00038356,2]
[426548115,1782579048000,-500.0,0.00038356,2]
[426548116,1782579048000,-510.41078122,0.00038356,2]
[426548117,1782579048000,-525.60584538,0.00038356,2]
[426548124,1782579048000,-518.39313271,0.00038356,2]